Entity,Date ,Expense Type,Expense Area,Supplier,Transaction Number,  Amount (�)  
South West Yorkshire NHS Foundation Trust,25-Jul-22,Purchase of Healthcare,AS Collaborative,Cheswold Park Hospital,4462,"658,037"
South West Yorkshire NHS Foundation Trust,19-Aug-22,Purchase of Healthcare,AS Collaborative,Cheswold Park Hospital,4493,"622,947"
South West Yorkshire NHS Foundation Trust,01-Aug-22,Purchase of Healthcare,AS Collaborative,Cygnet Health Care Ltd,CYGWYS24,"544,330"
South West Yorkshire NHS Foundation Trust,31-Aug-22,Purchase of Healthcare,AS Collaborative,Bradford District Care NHS Foundation Trust,202484,"493,917"
South West Yorkshire NHS Foundation Trust,31-Jul-22,Purchase of Healthcare,AS Collaborative,Waterloo Manor Ltd,HO NHS LS 263,"400,289"
South West Yorkshire NHS Foundation Trust,01-Aug-22,Purchase of Healthcare,AS Collaborative,Partnerships In Care Ltd,D510007141,"340,354"
South West Yorkshire NHS Foundation Trust,31-Jul-22,Purchase of Healthcare,AS Collaborative,Sheffield Health & Social Care NHS Foundation Trust,2100118427,"293,365"
South West Yorkshire NHS Foundation Trust,22-Aug-22,Purchase of Healthcare,AS Collaborative,Sheffield Health & Social Care NHS Foundation Trust,2100118458,"293,365"
South West Yorkshire NHS Foundation Trust,02-Aug-22,Purchase of Healthcare,AS Collaborative,Cygnet Health Care Ltd,SYSEC001INV,"269,313"
South West Yorkshire NHS Foundation Trust,02-Apr-22,Data Lines,Trustwide,Virgin Media Business Ltd,927686115,"202,973"
South West Yorkshire NHS Foundation Trust,01-Aug-22,Purchase of Healthcare,AS Collaborative,Cygnet Health Care Ltd,CYGSY001,"185,000"
South West Yorkshire NHS Foundation Trust,19-Aug-22,Purchase of Healthcare,AS Collaborative,Cheswold Park Hospital,4482,"178,986"
South West Yorkshire NHS Foundation Trust,25-Jul-22,Purchase of Healthcare,AS Collaborative,Cheswold Park Hospital,4450,"170,627"
South West Yorkshire NHS Foundation Trust,27-Jul-22,Staff Recharge,Trustwide,Mid Yorkshire Hospitals NHS Trust,1600020704,"168,655"
South West Yorkshire NHS Foundation Trust,27-Jul-22,Staff Recharge,Trustwide,Mid Yorkshire Hospitals NHS Trust,1600020706,"168,655"
South West Yorkshire NHS Foundation Trust,27-Jul-22,Staff Recharge,Trustwide,Mid Yorkshire Hospitals NHS Trust,1600020708,"168,655"
South West Yorkshire NHS Foundation Trust,27-Jul-22,Staff Recharge,Trustwide,Mid Yorkshire Hospitals NHS Trust,1600020720,"168,655"
South West Yorkshire NHS Foundation Trust,17-Aug-22,Staff Recharge,Trustwide,Mid Yorkshire Hospitals NHS Trust,1600020915,"168,655"
South West Yorkshire NHS Foundation Trust,01-Aug-22,Purchase of Healthcare,AS Collaborative,Partnerships In Care Ltd,D510007133,"164,554"
South West Yorkshire NHS Foundation Trust,19-Aug-22,Purchase of Healthcare,AS Collaborative,Cheswold Park Hospital,4495,"160,450"
South West Yorkshire NHS Foundation Trust,02-Aug-22,Purchase of Healthcare,AS Collaborative,Rotherham Doncaster & South Humber Mental Health NHS Foundation Trust,0000092678,"134,624"
South West Yorkshire NHS Foundation Trust,15-Jul-22,Purchase of Healthcare,AS Collaborative,Mersey Care NHS Foundation Trust,72483391,"133,923"
South West Yorkshire NHS Foundation Trust,25-Jul-22,Purchase of Healthcare,AS Collaborative,Cheswold Park Hospital,4463,"132,370"
South West Yorkshire NHS Foundation Trust,19-Aug-22,Purchase of Healthcare,AS Collaborative,Cheswold Park Hospital,4494,"128,100"
South West Yorkshire NHS Foundation Trust,25-Jul-22,Purchase of Healthcare,AS Collaborative,Cheswold Park Hospital,4464,"128,006"
South West Yorkshire NHS Foundation Trust,02-Aug-22,Purchase of Healthcare,AS Collaborative,Rotherham Doncaster & South Humber Mental Health NHS Foundation Trust,0000092649,"85,754"
South West Yorkshire NHS Foundation Trust,27-Jun-22,Computer Licences,Trustwide,Datix Ltd,SIN031242,"84,213"
South West Yorkshire NHS Foundation Trust,27-Jul-22,Drugs,Trustwide,Bradford Teaching Hospitals NHS Foundation Trust,321748,"70,974"
South West Yorkshire NHS Foundation Trust,31-Jul-22,Drugs,Trustwide,Lloyds Pharmacy Ltd,109497,"54,234"
South West Yorkshire NHS Foundation Trust,15-Jul-22,Drugs,Trustwide,NHS Business Services Authority,1000073927,"41,188"
South West Yorkshire NHS Foundation Trust,30-Jun-22,Purchase of Healthcare,Forensics,Sheffield Childrens NHS Foundation Trust,2100221026,"40,432"
South West Yorkshire NHS Foundation Trust,13-Jul-22,Mobile Phones,Trustwide,Vodafone Ltd,101719383,"39,307"
South West Yorkshire NHS Foundation Trust,01-Aug-22,Utilities,Trustwide,Edf Energy Customers Ltd,000012844483,"33,037"
South West Yorkshire NHS Foundation Trust,31-Jul-22,Purchase of Healthcare,Trustwide,Waterloo Manor Ltd,HO NHS LS 262 OBS,"32,736"
South West Yorkshire NHS Foundation Trust,31-Jul-22,Purchase of Healthcare,Trustwide,Partnerships In Care Ltd,D510007142EPC,"32,736"
South West Yorkshire NHS Foundation Trust,31-Jul-22,Purchase of Healthcare,Trustwide,Partnerships In Care Ltd,D510007144EPC,"32,736"
South West Yorkshire NHS Foundation Trust,31-Jul-22,Purchase of Healthcare,Trustwide,Cygnet Health Care Ltd,WKE0245185,"26,691"
South West Yorkshire NHS Foundation Trust,31-Jul-22,Purchase of Healthcare,Trustwide,Cygnet Health Care Ltd,BLA0244374,"26,691"
South West Yorkshire NHS Foundation Trust,29-Apr-22,Purchase of Healthcare,Trustwide,Elysium Healthcare Ltd,NC001652,"26,228"
South West Yorkshire NHS Foundation Trust,29-Apr-22,Purchase of Healthcare,Trustwide,Elysium Healthcare Ltd,NCO01652WY,"26,228"
